bitfinex-derivatives/quotes_ETHF0:USTF0_20251216
["timestamp","ask_amount","ask_price","bid_price","bid_amount"]
[1765921585765,1.4439,2954.0,2953.9,0.72999301]
[1765921586372,1.4439,2954.0,2953.9,1.49499301]
[1765921586974,1.44897709,2954.2,2954.1,1.4917]
[1765921587175,0.00507709,2954.2,2954.1,2.86592558]
[1765921587470,0.73317709,2954.2,2954.1,2.86592558]
[1765921587677,1.44897709,2954.2,2954.1,2.86592558]
[1765921587877,1.44897709,2954.2,2954.1,1.4917]
[1765921588077,1.4439,2954.0,2953.9,1.49499301]
[1765921590575,1.4439,2954.0,2953.9,0.72999301]
[1765921590782,1.9042,2954.0,2953.9,0.72999301]
[1765921592589,1.9042,2954.0,2953.9,0.00329301]
[1765921592888,0.7281,2954.1,2953.7,1.37422558]
[1765921593184,1.4439,2954.1,2953.7,2.10092558]
[1765921593387,1.4439,2953.8,2953.7,2.86592558]
[1765921593782,1.44674449,2953.8,2953.7,2.86952257]
[1765921594084,1.44674449,2953.8,2953.7,0.73029699]
[1765921594284,1.44674449,2953.8,2953.7,0.79369699]
[1765921594489,1.44674449,2953.8,2953.7,1.55919699]
[1765921595182,1.44674449,2953.8,2953.7,1.51889699]
[1765921595681,0.2316,2956.0,2955.3,0.7407]
[1765921595877,1.5018,2955.4,2955.3,1.4659]
[1765921596082,1.37422558,2956.3,2955.3,1.4659]
[1765921596282,1.5018,2955.6,2955.5,3.27362558]
[1765921596679,0.00396118,2955.6,2955.5,3.27362558]
[1765921599491,0.00396118,2955.6,2955.5,1.8994]
[1765921599694,1.5018,2955.4,2955.3,1.47097709]
[1765921600296,1.5018,2955.4,2955.3,0.00507709]
[1765921600684,1.5018,2955.4,2955.3,0.74577709]
[1765921600883,1.50576118,2955.6,2955.5,1.8994]
[1765921601996,1.50576118,2955.6,2955.5,1.1742]
[1765921602397,1.5018,2955.4,2955.3,2.84520267]
[1765921602896,1.5018,2955.4,2955.3,1.47097709]
[1765921607194,0.00396118,2955.6,2955.5,1.8994]
[1765921607598,0.73546118,2955.6,2955.5,1.8994]
[1765921611802,1.50576118,2955.6,2955.5,1.8994]
[1765921612002,0.73546118,2955.6,2955.5,1.8994]
[1765921612202,1.50576118,2955.6,2955.5,1.8994]
[1765921612905,0.73546118,2955.6,2955.5,1.8994]
[1765921614303,0.00396118,2955.6,2955.5,1.8994]
[1765921614906,1.50576118,2955.6,2955.5,1.8994]
[1765921615701,0.73546118,2955.6,2955.5,1.8994]
[1765921619114,1.50576118,2955.6,2955.5,1.8994]
[1765921621613,0.73546118,2955.6,2955.5,1.8994]
[1765921621811,1.5018,2955.4,2955.3,0.74577709]
[1765921622025,2.8756979,2955.4,2955.3,0.00507709]
[1765921622925,2.8756979,2955.4,2955.3,0.74577709]
[1765921623428,2.8756979,2955.4,2955.3,1.47097709]
[1765921623629,2.8756979,2955.4,2955.3,0.74577709]
[1765921624426,2.8756979,2955.4,2955.3,0.00507709]
[1765921633538,1.5018,2955.4,2955.3,0.00507709]
[1765921635039,1.5018,2955.4,2955.3,0.76057709]
[1765921635334,1.5129,2955.4,2955.3,1.50527709]
[1765921636136,1.5129,2955.4,2955.3,0.76057709]
[1765921636633,1.5129,2955.4,2955.3,1.50527709]
[1765921637435,1.5129,2955.4,2955.3,0.76057709]
[1765921638343,0.7315,2955.4,2955.3,1.50527709]
[1765921638536,1.5129,2955.4,2955.3,1.50527709]
[1765921639341,0.72056118,2955.6,2955.5,1.9428]
[1765921639742,1.50196118,2955.6,2955.5,1.9428]
[1765921640443,0.00396118,2955.6,2955.5,1.9428]
[1765921642041,0.72056118,2955.6,2955.5,1.9428]
[1765921643248,1.498,2955.4,2955.3,1.50527709]
[1765921644843,0.7166,2955.4,2955.3,1.50527709]
[1765921645044,0.00396118,2955.6,2955.5,1.9428]
[1765921645446,1.50196118,2955.6,2955.5,1.9428]
[1765921646053,1.50196118,2955.6,2955.5,1.1981]
[1765921646756,1.50196118,2955.6,2955.5,0.4426]
[1765921650449,1.498,2955.4,2955.3,0.76057709]
[1765921650655,1.498,2955.4,2955.3,0.00507709]
[1765921650955,1.498,2955.4,2955.3,0.76057709]
[1765921655452,1.498,2955.4,2955.3,1.50527709]
[1765921655855,1.498,2955.4,2955.3,0.00507709]
[1765921666765,0.00396118,2955.6,2955.3,0.75077709]
[1765921666965,1.457,2955.4,2955.3,1.54067709]
[1765921669264,0.7299,2955.4,2955.3,1.54067709]
[1765921669768,1.457,2955.4,2955.3,1.54067709]
[1765921670656,1.457,2955.4,2955.3,0.75077709]
[1765921670862,1.457,2955.4,2955.3,0.00507709]
[1765921671372,1.457,2955.4,2955.3,0.75077709]
[1765921671973,1.457,2955.4,2955.3,0.00507709]
[1765921672172,1.457,2955.4,2955.3,0.75077709]
[1765921673973,1.457,2955.4,2955.3,0.00507709]
[1765921676770,1.457,2955.4,2955.3,1.54067709]
[1765921679581,0.7299,2955.4,2955.3,1.54067709]
[1765921680388,1.457,2955.4,2955.3,1.54067709]
[1765921681689,0.7299,2955.4,2955.3,1.54067709]
[1765921682183,1.457,2955.4,2955.3,1.54067709]
[1765921683097,1.457,2955.4,2955.3,0.00507709]
[1765921686888,0.7143,2954.6,2954.5,6.20951916]
[1765921687090,0.7143,2954.6,2954.5,1.9432]
[1765921687294,1.37415815,2955.2,2954.5,1.9432]
[1765921687484,0.16922,2955.3,2955.2,1.5097]
[1765921687679,1.64382,2955.3,2955.2,0.7524]
[1765921687988,1.4746,2955.1,2955.0,1.20018469]
[1765921688486,1.64382,2955.3,2955.2,0.7524]
[1765921688888,1.4746,2955.1,2955.0,1.95748469]
[1765921692992,2.41035015,2955.6,2955.5,1.1968]
[1765921693395,1.47856118,2955.6,2955.0,0.44778469]
[1765921694290,0.17316118,2955.6,2955.0,1.95748469]
[1765921694598,0.7143,2955.1,2955.0,1.95748469]
[1765921697502,2.84885815,2955.4,2955.3,0.7524]
[1765921698201,2.84885815,2955.4,2955.3,1.5097]
[1765921698499,1.4746,2955.4,2955.3,1.5097]
[1765921700997,1.4746,2955.4,2955.3,0.7524]
[1765921701404,0.7143,2955.1,2955.0,1.95748469]
[1765921703906,1.4746,2955.1,2955.0,0.00338469]
[1765921707513,1.4746,2954.6,2954.0,1.80775815]
[1765921707916,1.4746,2954.6,2954.5,0.7524]
[1765921708212,1.4746,2954.6,2954.5,1.1968]
[1765921708406,1.4746,2954.6,2954.5,0.4444]
[1765921708608,1.4746,2954.6,2954.0,1.80775815]
[1765921708810,1.37425815,2954.5,2954.0,0.4335]
[1765921709205,0.7143,2954.1,2954.0,1.9432]
[1765921709407,2.84885815,2954.3,2954.2,1.5097]
[1765921711312,1.4746,2954.3,2954.2,0.7524]
[1765921711512,0.7143,2954.3,2954.2,1.5097]
[1765921711815,1.4746,2954.3,2954.2,1.5097]
[1765921718619,0.7143,2954.3,2954.2,1.5097]
[1765921721414,1.5341,2954.7,2954.6,1.5124]
[1765921721616,0.7626,2954.7,2954.6,1.5124]
[1765921722022,1.5341,2954.7,2954.6,1.5124]
[1765921734136,1.5341,2954.6,2954.5,1.2414]
[1765921734335,2.90835815,2954.6,2954.5,0.4656]
[1765921734836,2.90835815,2954.6,2954.5,1.2414]
[1765921736234,2.90835815,2954.6,2954.5,1.978]
[1765921742242,2.90835815,2954.6,2954.5,1.2414]
[1765921742443,2.90835815,2954.6,2954.0,0.4335]
[1765921742638,0.7626,2954.1,2954.0,1.9459]
[1765921743043,2.90835815,2954.4,2954.3,0.7758]
[1765921743243,2.90835815,2954.4,2954.3,1.5124]
[1765921744750,1.5341,2954.4,2954.3,1.5124]
[1765921745652,0.7626,2954.4,2954.3,1.5124]
[1765921745952,1.4841,2954.4,2954.3,1.5124]
[1765921746348,0.7322,2954.1,2954.0,1.9009]
[1765921750655,1.4537,2954.1,2954.0,1.9009]
[1765921752947,1.4537,2953.8,2953.7,0.73739699]
[1765921753153,0.00507709,2954.0,2953.9,1.4674]
[1765921753850,40.8,2954.5,2953.9,1.4674]
[1765921753851,0.16923,2955.2,2954.0,0.4725]
[1765921754051,0.7322,2954.6,2954.5,1.9399]
[1765921756256,1.4537,2954.4,2954.3,1.47247709]
[1765921758061,0.7322,2954.4,2954.3,1.47247709]
[1765921758462,2.83355207,2954.8,2954.7,0.7338]
[1765921758858,1.45877709,2954.8,2954.7,0.7338]
[1765921759058,1.45877709,2954.8,2954.7,1.4674]
[1765921761859,1.45877709,2954.8,2954.7,0.7338]
[1765921762455,0.73727709,2954.8,2954.7,1.4674]
[1765921762761,0.00507709,2954.8,2954.7,2.84217498]
[1765921764664,0.00507709,2954.8,2954.7,1.4674]
[1765921765564,3.00163616,2955.6,2955.5,1.2063]
[1765921766162,0.90536118,2955.6,2955.5,1.9399]
[1765921766361,1.62686118,2955.6,2955.5,1.2063]
[1765921766765,1.62686118,2955.6,2955.5,1.9399]
[1765921770061,0.00396118,2955.6,2955.5,1.9399]
[1765921770259,0.73616118,2955.6,2955.5,1.9399]
[1765921770465,1.45766118,2955.6,2955.5,1.9399]
[1765921775876,0.73616118,2955.6,2955.5,1.9399]
[1765921776170,0.7316,2955.1,2955.0,2.0227]
[1765921776674,1.37873616,2955.6,2955.0,2.0227]
[1765921777669,1.4945,2955.1,2955.0,2.0227]
[1765921778473,1.4945,2955.1,2955.0,1.2408]
[1765921778679,0.7316,2954.6,2954.5,2.0227]
[1765921779076,1.4945,2954.6,2954.5,1.2408]
[1765921779276,1.4945,2954.6,2954.5,2.0227]
[1765921780278,1.4945,2954.4,2954.3,1.55527709]
[1765921780777,1.4945,2954.4,2954.3,0.00507709]
[1765921782275,1.4945,2954.4,2954.3,0.77337709]
[1765921783082,1.4945,2954.4,2954.3,0.00507709]
[1765921787084,2.86927498,2954.4,2954.3,0.00507709]
[1765921788085,0.7316,2953.8,2953.7,1.55379699]
[1765921789081,1.37477498,2954.4,2953.7,1.55379699]
[1765921789280,1.49957709,2954.0,2953.9,1.5502]
[1765921791293,0.00507709,2954.0,2953.9,1.5502]
[1765921798093,0.73667709,2954.0,2953.9,1.5502]
[1765921798294,0.00507709,2954.0,2953.9,1.5502]
[1765921798994,0.73667709,2954.0,2953.9,1.5502]
[1765921799196,1.49957709,2954.0,2953.9,1.5502]
[1765921799391,1.49957709,2954.0,2953.9,0.7683]
[1765921799588,1.49957709,2954.0,2953.9,1.5502]
[1765921800093,0.73667709,2954.0,2953.9,1.5502]
[1765921801095,0.00507709,2954.0,2953.9,1.5502]
[1765921801299,0.73667709,2954.0,2953.9,1.5502]
[1765921802500,0.00507709,2954.0,2953.9,1.5502]
[1765921803201,0.7316,2953.8,2953.7,0.00359699]
[1765921803397,0.73667709,2954.0,2953.9,1.5502]
[1765921804093,0.16923,2955.1,2954.0,0.61699]
[1765921804404,0.7603,2955.5,2955.4,1.4884]
[1765921804602,0.76426118,2955.6,2955.5,1.9361]
[1765921804799,1.52216118,2955.6,2955.5,1.9361]
[1765921804993,0.7603,2955.1,2955.0,1.9361]
[1765921805198,1.5182,2955.1,2955.0,1.9361]
[1765921805701,1.5182,2955.1,2955.0,1.1726]
[1765921805897,0.00507709,2955.3,2954.8,0.00507709]
[1765921805898,1.5182,2954.9,2954.8,1.49347709]
[1765921806103,1.5182,2954.9,2954.8,0.00507709]
[1765921807490,1.5182,2954.9,2954.8,1.49347709]
[1765921807695,0.7603,2954.9,2954.8,1.49347709]
[1765921808098,1.5182,2954.9,2954.8,1.49347709]
[1765921809800,1.37985207,2955.3,2954.8,1.49347709]
[1765921809801,0.76537709,2955.3,2955.2,1.4884]
[1765921810509,1.52327709,2955.3,2955.2,1.4884]
[1765921811502,1.5182,2954.9,2954.8,0.72997709]
[1765921812408,1.5182,2954.9,2954.8,1.49347709]
[1765921813713,1.5182,2954.9,2954.8,0.72997709]
[1765921817012,1.5182,2954.9,2954.8,1.49347709]
[1765921818409,0.7603,2954.9,2954.8,1.49347709]
[1765921818609,0.76537709,2955.3,2955.2,1.4884]
[1765921819010,1.52327709,2955.3,2955.2,1.4884]
[1765921819611,1.52327709,2955.3,2955.2,0.7249]
[1765921819812,1.5182,2955.1,2955.0,1.9361]
[1765921822822,0.7603,2955.1,2955.0,1.9361]
[1765921823121,0.00507709,2955.3,2955.0,1.9361]
[1765921823122,0.76537709,2955.3,2955.2,1.4884]
[1765921823523,1.52327709,2955.3,2955.2,1.4884]
[1765921824615,0.76537709,2955.3,2955.2,1.4884]
[1765921825316,1.52327709,2955.3,2955.2,1.4884]
[1765921828817,1.52327709,2955.3,2955.2,0.7249]
[1765921829026,1.52327709,2955.3,2955.2,1.4884]
[1765921832433,0.76537709,2955.3,2955.2,1.4884]
[1765921836929,0.00507709,2955.3,2955.2,1.4884]
[1765921860250,1.4605,2954.9,2954.8,0.78617709]
[1765921860553,2.83464189,2954.9,2954.8,0.00507709]
[1765921862356,2.83971898,2955.3,2955.2,1.56]
[1765921863252,2.83971898,2955.3,2955.2,0.7811]
[1765921866975,1.511,2955.1,2955.0,1.9327]
[1765921867376,1.511,2954.9,2954.8,1.48797709]
[1765921868680,1.511,2954.9,2954.8,0.72457709]
[1765921869080,1.511,2954.9,2954.8,1.48797709]
[1765921874879,2.88514189,2954.9,2954.8,0.72457709]
[1765921875084,2.88514189,2954.9,2954.8,0.00507709]
[1765921876884,1.511,2954.6,2954.5,1.9182]
[1765921877084,0.7855,2954.6,2954.5,1.9182]
[1765921877277,2.88514189,2954.9,2954.8,1.4829]
[1765921877482,1.511,2954.9,2954.8,1.4829]
[1765921878081,0.79057709,2955.3,2955.2,1.4829]
[1765921878286,0.00507709,2955.3,2955.2,1.4829]
[1765921878781,0.79057709,2955.3,2955.2,1.4829]
[1765921878981,1.51607709,2955.3,2955.2,1.4829]
[1765921879178,1.51607709,2955.3,2955.0,0.4353]
[1765921879179,1.511,2955.1,2955.0,0.4353]
[1765921879378,1.511,2954.7,2954.6,1.48797709]
[1765921879582,1.511,2954.7,2954.6,0.72457709]
[1765921880790,1.511,2954.7,2954.6,0.00507709]
[1765921883596,1.511,2954.7,2954.6,0.72457709]
[1765921884492,1.511,2954.7,2954.6,0.00507709]
[1765921885596,1.511,2954.7,2954.6,0.72457709]
[1765921886086,1.511,2954.7,2954.6,1.48797709]
[1765921886397,0.7855,2954.7,2954.6,1.48797709]
[1765921887190,2.88581313,2955.0,2954.9,0.7195]
[1765921887984,1.54911022,2955.3,2955.0,0.4353]
[1765921888189,1.54911022,2955.3,2955.0,1.9182]
[1765921888190,1.511,2955.1,2955.0,1.9182]
[1765921888394,1.511,2955.1,2955.0,0.7195]
[1765921892704,1.511,2955.1,2955.0,1.9182]
[1765921892896,0.7855,2955.1,2955.0,1.9182]
[1765921893598,1.511,2955.1,2955.0,1.9182]
[1765921893800,1.69319709,2955.3,2955.2,1.4575]
[1765921894197,1.458,2955.1,2954.6,0.00507709]
[1765921894793,1.458,2955.1,2955.0,0.7612]
[1765921895796,1.458,2955.1,2954.6,0.00507709]
[1765921896097,1.4701,2954.7,2954.6,1.55647709]
[1765921899404,1.4701,2954.7,2954.6,0.00507709]
[1765921904609,1.4701,2954.7,2954.6,0.78107709]
[1765921906207,0.7556,2955.0,2954.9,1.5514]
[1765921906701,1.4701,2955.0,2954.9,1.5514]
[1765921907711,0.7556,2954.7,2954.6,1.55647709]
[1765921909809,0.00507709,2955.3,2954.6,1.55647709]
[1765921910013,1.37989022,2955.3,2954.6,1.55647709]
[1765921913613,0.7556,2954.7,2954.6,1.55647709]
[1765921914213,1.4701,2954.7,2954.6,1.55647709]
[1765921914513,1.4701,2954.7,2954.6,0.78107709]
[1765921915611,1.4701,2954.7,2954.6,1.55647709]
[1765921916917,1.4701,2954.7,2954.6,0.78107709]
[1765921917212,1.4701,2954.7,2954.6,1.55647709]
[1765921920520,0.7556,2954.7,2954.6,1.55647709]
[1765921922626,1.4701,2954.7,2954.6,1.55647709]
[1765921923320,1.4701,2954.7,2954.6,0.00507709]
[1765921927714,1.4701,2954.7,2953.7,1.50209699]
[1765921927715,0.7172,2953.8,2953.7,1.50209699]
[1765921927919,1.44,2953.8,2953.7,1.50209699]
[1765921928424,0.7172,2953.8,2953.7,1.50209699]
[1765921929227,1.44,2953.8,2953.7,1.50209699]
[1765921929524,0.7172,2953.8,2953.7,1.50209699]
[1765921930320,1.44,2953.8,2953.7,1.50209699]
[1765921930623,0.7172,2953.8,2953.7,1.50209699]
[1765921932015,1.37481313,2954.2,2953.7,1.50209699]
[1765921932220,2.81481313,2954.2,2954.1,0.7512]
[1765921933824,0.7172,2954.2,2954.1,1.4985]
[1765921934022,1.44,2954.2,2954.1,1.4985]
[1765921935229,1.44,2954.1,2954.0,1.2159]
[1765921935426,1.44,2954.1,2954.0,1.9632]
[1765921939128,1.44,2954.5,2954.4,1.4985]
[1765921939526,1.5443389,2954.7,2954.4,1.4985]
[1765921939732,0.7172,2954.5,2954.4,1.4985]
[1765921942730,2.8150789,2954.5,2954.4,0.7512]
[1765921943338,2.8150789,2954.5,2954.4,1.4985]
[1765921943934,2.8150789,2954.5,2954.4,0.7512]
[1765921944236,1.3750789,2954.5,2954.0,1.9632]
[1765921944437,0.7172,2954.1,2954.0,1.9632]
[1765921945337,1.8213789,2954.5,2954.4,0.7512]
[1765921945338,2.8150789,2954.5,2954.4,0.7512]
[1765921945635,2.8150789,2954.5,2954.0,0.4647]
[1765921946439,0.7172,2954.1,2954.0,1.9632]
[1765921946739,0.16926,2954.7,2954.0,1.9632]
[1765921949329,0.7172,2954.1,2954.0,1.9632]
[1765921949537,1.44,2954.1,2954.0,1.2159]
[1765921949735,1.44,2954.1,2954.0,1.9632]
[1765921950539,0.7172,2954.1,2954.0,1.9632]
[1765921951725,1.44,2954.1,2954.0,1.9632]
[1765921951931,2.8150789,2954.1,2954.0,0.7512]
[1765921954842,2.8150789,2954.1,2954.0,1.4985]
[1765921956042,0.774,2953.8,2953.7,1.50729699]
[1765921957539,2.93290908,2954.1,2954.0,1.9408]
[1765921960434,2.93290908,2954.1,2954.0,1.1616]
[1765921960834,1.5574,2953.8,2953.7,1.50729699]
[1765921961041,0.774,2953.8,2953.7,1.50729699]
[1765921964942,2.93290908,2954.1,2954.0,0.7245]
[1765921966248,2.93290908,2954.1,2954.0,1.5037]
[1765921966645,2.93290908,2954.1,2954.0,1.9408]
[1765921968150,5.62861668,4046.4,2954.5,0.7245]
[1765921968151,1.5574,2954.6,2954.5,0.7245]
[1765921968344,2.93290908,2954.6,2954.5,1.5037]
[1765921968544,2.93290908,2954.6,2954.5,0.7245]
[1765921970350,2.93290908,2954.6,2954.5,1.5037]
[1765921972246,0.774,2953.8,2953.7,1.50729699]
[1765921972443,1.5574,2953.8,2953.7,1.50729699]
[1765921973644,1.5574,2953.8,2953.7,0.00359699]
[1765921979251,2.14950908,2954.0,2953.9,1.5037]
[1765921979446,2.93290908,2954.0,2953.9,1.5037]
[1765921980245,2.93290908,2954.0,2953.9,0.7245]
[1765921980647,1.5574,2953.8,2953.7,1.50729699]
[1765921981448,1.5574,2953.8,2953.7,0.00359699]
[1765921981650,1.5574,2953.8,2953.7,0.72809699]
[1765921982051,1.5574,2953.8,2953.7,1.50729699]
[1765921988968,3.10238908,2954.3,2954.2,1.5606]
[1765921989358,3.10238908,2954.3,2954.2,0.7824]
[1765921989559,1.5576,2954.1,2954.0,0.7824]
[1765921989758,2.93310908,2954.1,2954.0,0.7824]
[1765921990670,2.93310908,2954.1,2954.0,1.5606]
[1765921990976,2.93310908,2954.1,2954.0,2.0054]
[1765921996473,1.5576,2953.8,2953.7,0.00359699]
[1765921996781,2.93310908,2953.8,2953.7,0.00359699]
[1765922001480,2.93359082,2953.8,2953.7,0.00359699]
[1765922002378,1.5576,2953.1,2953.0,1.2154]
[1765922002571,1.5576,2952.7,2952.6,5.82691916]
[1765922002879,0.7767,2952.7,2952.6,1.5606]
[1765922003073,1.37599082,2953.2,2952.6,1.5606]
[1765922003475,1.37879,2953.2,2952.6,1.56453949]
[1765922008781,0.7767,2952.7,2952.6,1.56453949]
[1765922008974,1.37879,2953.2,2952.6,1.56453949]
[1765922010083,1.37599082,2953.1,2952.6,1.56453949]
[1765922011276,2.93359082,2953.1,2953.0,1.5606]
[1765922011570,2.93359082,2953.1,2953.0,0.7824]
[1765922013984,0.7664,2952.7,2952.6,1.50363949]
[1765922018389,1.4818,2952.7,2952.6,1.50363949]
[1765922018587,1.4818,2952.7,2952.6,0.00393949]
[1765922020091,0.7205,2952.1,2952.0,1.9386]
[1765922020392,1.4359,2952.1,2952.0,1.9386]
[1765922020888,0.7205,2952.1,2952.0,1.94101889]
[1765922023692,1.4359,2952.1,2952.0,1.94101889]
[1765922023895,1.4359,2952.1,2952.0,0.77581889]
[1765922024095,1.4359,2952.1,2952.0,0.00241889]
[1765922024288,1.4359,2952.1,2952.0,1.95701889]
[1765922025294,0.7205,2952.1,2952.0,1.95701889]
[1765922025594,1.4359,2952.1,2952.0,1.95701889]
[1765922025783,1.4359,2952.1,2952.0,1.23661889]
[1765922026184,1.4359,2952.1,2952.0,0.77581889]
[1765922027688,1.4359,2952.1,2952.0,1.49621889]
[1765922029199,1.8697,2952.5,2952.4,0.7734]
[1765922029394,1.4359,2952.5,2952.4,0.7734]
[1765922029600,1.4359,2952.5,2952.4,1.4938]
[1765922030897,1.4359,2952.5,2952.4,0.7734]
[1765922031400,1.4359,2952.5,2952.4,1.4938]
[1765922033604,1.4359,2952.6,2952.5,1.9546]
[1765922035004,1.54664084,2953.0,2952.5,1.9546]
[1765922035400,1.65804084,2953.0,2952.5,1.9546]
[1765922035602,0.7205,2952.6,2952.5,1.9546]
[1765922036096,1.4359,2952.6,2952.5,1.9546]
[1765922037305,1.4359,2952.6,2952.5,0.7734]
[1765922037795,1.4359,2952.6,2952.5,1.9546]
[1765922037999,1.60526,2952.9,2952.8,0.7734]
[1765922038297,1.60526,2952.9,2952.8,1.4938]
[1765922039506,1.60526,2952.9,2952.8,0.7734]
[1765922040203,0.7205,2952.6,2952.5,1.9546]
[1765922041607,1.4359,2952.6,2952.5,1.2342]
[1765922042000,1.4359,2952.6,2952.5,1.9546]
[1765922042604,0.7205,2952.6,2952.5,1.9546]
[1765922042998,0.00279918,2953.2,2952.5,1.9546]
[1765922043202,1.37729084,2953.1,2952.5,1.9546]
[1765922043903,2.86069084,2953.1,2953.0,0.7734]
[1765922044100,0.7205,2953.1,2953.0,1.9961]
[1765922044310,0.71779918,2953.2,2953.1,1.5124]
[1765922044510,1.48069918,2953.2,2953.1,1.5124]
[1765922044704,1.48069918,2953.2,2953.0,0.4554]
[1765922044705,1.4779,2952.6,2951.9,0.16941]
[1765922044908,0.715,2952.1,2952.0,1.97561889]
[1765922045104,2.85519084,2952.4,2952.3,0.7451]
[1765922045308,2.85519084,2952.4,2952.3,1.5124]
[1765922045511,1.4779,2952.4,2952.3,1.5124]
[1765922050806,0.715,2952.4,2952.3,1.5124]
[1765922051406,1.64728,2952.6,2952.5,1.9678]
[1765922051606,1.64728,2952.6,2952.5,0.7451]
[1765922052214,1.64728,2952.6,2952.0,0.46321889]
[1765922052413,1.64728,2952.6,2952.5,0.7451]
[1765922053117,1.64728,2952.6,2952.0,0.46321889]
[1765922053318,1.64728,2952.6,2952.5,0.7451]
[1765922054814,0.715,2952.1,2952.0,1.97561889]
[1765922055023,1.4779,2952.1,2952.0,1.97561889]
[1765922055221,0.715,2952.1,2952.0,1.97561889]
[1765922055416,1.4779,2952.1,2952.0,1.97561889]
[1765922056924,1.4779,2952.1,2952.0,0.00241889]
[1765922058022,1.4779,2952.1,2952.0,0.74751889]
[1765922058225,1.4779,2952.1,2952.0,1.51481889]
[1765922058420,1.4779,2952.1,2952.0,0.74751889]
[1765922058621,0.715,2952.1,2952.0,1.97021889]
[1765922058824,3.02457084,2952.5,2952.4,0.7451]
[1765922059225,0.715,2952.1,2952.0,1.97021889]
[1765922060817,1.4779,2952.1,2952.0,1.97021889]
[1765922061016,0.715,2952.1,2952.0,1.97021889]
[1765922061224,3.47287084,2952.5,2952.4,0.7451]
[1765922061528,3.4726672,2952.5,2952.0,0.45781889]
[1765922061721,2.8549872,2952.3,2952.2,1.5124]
[1765922063228,1.4779,2952.1,2952.0,1.97021889]
[1765922063528,2.8549872,2952.1,2952.0,1.97021889]
[1765922064734,2.8549872,2952.1,2952.0,0.74751889]
[1765922064921,2.8549872,2952.1,2952.0,0.00241889]
[1765922066128,2.8549872,2952.1,2952.0,0.74751889]
[1765922066813,1.4779,2952.1,2952.0,1.51481889]
[1765922067018,1.4779,2952.1,2952.0,1.97021889]
[1765922069323,2.8549872,2952.1,2952.0,0.74751889]
[1765922069523,2.8549872,2952.1,2952.0,0.00241889]
[1765922069722,2.8549872,2952.1,2952.0,0.74751889]
[1765922069922,2.8549872,2952.1,2952.0,1.51481889]
[1765922070124,2.8549872,2952.1,2952.0,1.97021889]
[1765922074032,2.8549872,2952.1,2952.0,0.00241889]
[1765922074236,0.7507,2951.3,2951.2,5.71931916]
[1765922074535,0.7507,2951.3,2951.2,1.453]
[1765922075133,1.38216429,2951.5,2951.2,1.453]
[1765922075334,1.496,2951.3,2951.2,1.45599854]
[1765922075535,0.7397,2951.3,2951.2,1.45599854]
[1765922075936,2.87816429,2951.5,2951.4,1.5116]
[1765922077029,0.74477709,2951.5,2951.4,1.5116]
[1765922077233,0.00507709,2951.5,2951.4,1.5116]
[1765922079236,0.4483,2952.5,2951.4,1.5116]
[1765922079237,0.16938,2952.6,2951.8,1.5116]
[1765922079434,0.16938,2952.6,2951.5,0.4506]
[1765922079435,0.4483,2953.0,2952.2,1.3770872]
[1765922079637,1.3770872,2952.9,2952.2,1.3770872]
[1765922079834,1.3770872,2952.9,2952.0,0.4506]
[1765922080039,1.3770872,2953.0,2952.2,1.3770872]
[1765922080344,1.50107709,2952.9,2952.8,0.7836]
[1765922084946,1.496,2952.6,2952.5,1.9622]
[1765922087443,1.496,2952.6,2952.5,1.2342]
[1765922091855,1.496,2952.4,2952.3,0.78867709]
[1765922092055,1.496,2952.4,2952.3,0.00507709]
[1765922092262,1.496,2952.4,2952.3,1.51667709]
[1765922099472,0.7397,2952.4,2952.3,1.51667709]
[1765922099675,1.496,2952.4,2952.3,1.51667709]
[1765922099866,0.7397,2952.4,2952.3,1.51667709]
[1765922101066,0.91413709,2952.9,2952.8,0.7836]
[1765922101274,1.67043709,2952.9,2952.8,1.5116]
[1765922101677,1.67043709,2952.9,2952.8,0.7836]
[1765922102475,0.7397,2952.6,2952.5,1.9622]
[1765922105480,1.67203709,2952.9,2952.8,0.7836]
[1765922105777,0.7834,2952.6,2952.5,1.9315]
[1765922105977,1.5413,2952.6,2952.5,1.2045]
[1765922106568,1.5413,2952.6,2952.5,1.9315]
[1765922107978,1.5413,2952.6,2952.5,0.4506]
[1765922108380,1.5413,2952.4,2952.3,0.75897709]
[1765922108576,2.91801057,2952.4,2952.3,0.00507709]
[1765922108776,2.91801057,2952.4,2952.3,0.75897709]
[1765922108974,1.5413,2952.4,2952.3,1.48597709]
[1765922109378,2.91801057,2952.8,2952.7,0.7539]
[1765922111978,0.7834,2952.8,2952.7,1.4809]
[1765922112182,2.91801057,2952.8,2952.7,1.4809]
[1765922114685,2.91801057,2952.8,2952.7,0.7539]
[1765922117389,2.91801057,2952.8,2952.5,0.465]
[1765922117390,1.5413,2952.6,2952.5,0.465]
[1765922117686,2.91801057,2952.6,2952.5,0.465]
[1765922117890,2.91801057,2952.6,2952.5,1.2189]
[1765922121093,2.91801057,2952.6,2952.5,1.9459]
[1765922121493,1.5413,2952.6,2952.5,1.9459]
[1765922122688,1.37683653,2952.8,2952.3,0.75897709]
[1765922122689,1.5413,2952.4,2952.3,0.75897709]
[1765922123384,1.5413,2952.4,2952.3,1.48597709]
[1765922125094,0.16937,2952.8,2952.7,1.4809]
[1765922125285,1.54637709,2952.9,2952.8,0.7539]
[1765922125492,1.5413,2952.6,2952.5,1.9459]
[1765922126696,1.5413,2952.4,2952.3,0.00507709]
[1765922126996,1.5413,2952.4,2952.3,0.75897709]
[1765922128394,2.91813653,2952.4,2952.3,0.00507709]
[1765922129798,1.5413,2952.4,2952.3,1.48597709]
[1765922134301,1.5413,2952.4,2952.3,0.00507709]
[1765922134601,1.5413,2952.4,2952.3,0.75317709]
[1765922134801,1.5413,2952.4,2952.3,1.51687709]
[1765922141202,1.5413,2952.4,2952.3,0.00507709]
[1765922141403,1.5413,2952.4,2952.3,0.71967709]
[1765922142002,1.5413,2952.4,2952.3,1.48837709]
[1765922142307,1.5413,2952.4,2952.3,0.71967709]
[1765922142905,1.5413,2952.4,2952.3,0.00507709]